bitfinex/quotes_SOLUSD_20251009
["timestamp","ask_amount","ask_price","bid_price","bid_amount"]
[1760034654225,32.22,218.42,218.41,0.1]
[1760034656230,36.79833531,218.42,218.41,0.1]
[1760034657916,36.79833531,218.42,218.41,0.79]
[1760034658733,36.79833531,218.42,218.41,0.1]
[1760034659523,36.79833531,218.42,218.41,0.79]
[1760034659524,4.57833531,218.42,218.41,0.79]
[1760034659720,4.57805382,218.44,218.41,0.79]
[1760034659934,32.22,218.44,218.41,0.79]
[1760034660347,32.22,218.44,218.42,0.69]
[1760034660654,36.79794839,218.44,218.43,0.69]
[1760034661335,48.24273872,218.44,218.41,0.79]
[1760034661837,48.24273872,218.44,218.41,0.1]
[1760034662217,48.24273872,218.44,218.41,0.79]
[1760034662447,4.57772855,218.45,218.42,0.69]
[1760034662640,32.22,218.44,218.41,0.1]
[1760034662824,32.22,218.44,218.42,0.71]
[1760034664230,4.57812571,218.43,218.41,0.1]
[1760034664828,4.57812571,218.43,218.41,0.81]
[1760034665037,4.57812571,218.43,218.41,0.1]
[1760034667954,4.57812571,218.43,218.42,0.71]
[1760034668148,4.57812571,218.43,218.41,0.1]
[1760034668840,4.57812571,218.43,218.41,0.81]
[1760034669331,4.57812571,218.43,218.41,0.1]
[1760034669743,32.22,218.42,218.41,0.1]
[1760034670124,32.93,218.42,218.41,0.1]
[1760034670556,32.22,218.42,218.41,0.1]
[1760034671261,32.93,218.42,218.41,0.1]
[1760034671583,40.57876278,218.42,218.41,0.1]
[1760034672327,39.86876278,218.42,218.41,0.1]
[1760034672854,7.64876278,218.42,218.41,0.81]
[1760034673168,32.22,218.46,218.41,0.81]
[1760034673351,4.57791613,218.44,218.41,0.81]
[1760034674665,4.57770656,218.45,218.41,0.1]
[1760034674869,4.57770656,218.45,218.42,0.71]
[1760034675053,4.57770656,218.45,218.43,0.71]
[1760034675385,19.09369635,218.45,218.41,0.1]
[1760034675585,3.07191482,218.44,218.41,0.81]
[1760034675887,35.29191482,218.44,218.41,0.1]
[1760034676068,32.93,218.44,218.41,0.1]
[1760034676375,0.71,218.43,218.41,0.1]
[1760034676580,32.22,218.42,218.41,0.1]
[1760034677288,36.79833531,218.42,218.41,0.1]
[1760034678177,37.50833531,218.42,218.41,0.1]
[1760034678359,36.79833531,218.42,218.41,0.1]
[1760034678759,39.87125665,218.42,218.41,0.1]
[1760034679071,39.87120316,218.42,218.41,0.1]
[1760034680655,20.8,218.49,218.41,0.81]
[1760034680854,0.71,218.5,218.41,0.81]
[1760034680855,7.65167461,218.48,218.41,0.81]
[1760034681168,36.00459662,218.47,218.41,0.1]
[1760034681473,3.07459662,218.46,218.41,0.1]
[1760034681675,35.29459662,218.45,218.41,0.1]
[1760034681876,3.07459662,218.44,218.41,0.1]
[1760034682064,32.22,218.43,218.41,0.1]
[1760034682253,3.07459662,218.42,218.41,0.1]
[1760034682450,7.65293193,218.42,218.41,0.1]
[1760034683659,36.79833531,218.42,218.41,0.1]
[1760034683864,39.87293193,218.42,218.41,0.1]
[1760034684681,39.87293193,218.42,218.41,0.81]
[1760034684893,39.87293193,218.42,218.41,0.1]
[1760034686871,39.87293193,218.42,218.41,0.81]
[1760034687075,39.87293193,218.42,218.41,0.1]
[1760034688558,39.87293193,218.42,218.41,0.81]
[1760034688784,39.87293193,218.42,218.33,32.35047584]
[1760034688785,42.7004468,218.42,218.34,10.87647521]
[1760034688988,3.76459662,218.41,218.33,0.1]
[1760034689292,35.29459662,218.4,218.35,0.71]
[1760034689458,3.07459662,218.39,218.35,0.71]
[1760034689659,35.29459662,218.38,218.35,0.71]
[1760034689966,3.07459662,218.37,218.35,0.71]
[1760034690162,3.07459662,218.36,218.33,0.1]
[1760034690463,3.07459662,218.35,218.34,0.71]
[1760034690880,7.65439968,218.35,218.33,0.1]
[1760034691081,3.07459662,218.34,218.33,0.1]
[1760034691861,3.07459662,218.34,218.33,0.81]
[1760034692266,35.29459662,218.36,218.33,0.81]
[1760034692485,7.65440915,218.35,218.34,0.71]
[1760034692660,7.65440915,218.35,218.34,0.67]
[1760034693058,7.65440915,218.35,218.33,0.1]
[1760034693263,35.98459662,218.34,218.33,0.1]
[1760034693491,35.98459662,218.34,218.31,0.1]
[1760034693672,20.8,218.32,218.31,1e-08]
[1760034693875,23.87459662,218.32,218.31,1e-08]
[1760034694065,56.09459662,218.32,218.31,1e-08]
[1760034694776,56.78459662,218.32,218.31,1e-08]
[1760034695084,61.36502901,218.32,218.31,1e-08]
[1760034701695,60.67502901,218.32,218.31,1e-08]
[1760034701899,61.36502901,218.32,218.31,1e-08]
[1760034703575,72.24150422,218.32,218.31,1e-08]
[1760034703975,86.00139414,218.32,218.31,1e-08]
[1760034704273,86.00139414,218.32,218.21,0.67]
[1760034704274,20.8,218.24,218.19,0.1]
[1760034704473,35.29459662,218.23,218.19,0.1]
[1760034704695,3.07459662,218.22,218.19,0.1]
[1760034704895,32.3,218.21,218.19,0.1]
[1760034705197,23.85710497,218.2,218.19,1e-08]
[1760034705401,56.15710497,218.2,218.19,1e-08]
[1760034705705,60.74005639,218.2,218.19,1e-08]
[1760034706209,60.74005639,218.2,218.19,0.70000001]
[1760034706210,28.44005639,218.2,218.19,0.70000001]
[1760034706388,32.3,218.2,218.19,0.70000001]
[1760034708006,32.32,218.2,218.19,0.70000001]
[1760034709604,32.32,218.2,218.19,1e-08]
[1760034709805,36.90295142,218.2,218.19,1e-08]
[1760034710502,40.62226544,218.2,218.19,1e-08]
[1760034711390,39.95226544,218.2,218.19,1e-08]
[1760034712581,57.70295142,218.2,218.19,1e-08]
[1760034712777,36.90295142,218.2,218.19,0.70000001]
[1760034716118,4.5823214,218.23,218.19,0.70000001]
[1760034716408,36.8823214,218.23,218.19,0.70000001]
[1760034718909,48.33812491,218.23,218.19,0.70000001]
[1760034719614,48.33812491,218.23,218.2,0.7]
[1760034720184,4.5823214,218.23,218.21,0.7]
[1760034720394,32.3,218.22,218.19,1e-08]
[1760034720596,36.8823214,218.23,218.19,1e-08]
[1760034721093,36.8823214,218.23,218.2,0.7]
[1760034721290,36.8823214,218.23,218.19,1e-08]
[1760034721593,48.33812491,218.23,218.2,0.7]
[1760034721796,32.3,218.23,218.21,0.7]
[1760034721998,32.3,218.23,218.22,0.7]
[1760034722389,36.88235217,218.23,218.19,1e-08]
[1760034722711,36.88235217,218.23,218.2,0.71]
[1760034722911,48.33815568,218.23,218.19,1e-08]
[1760034723219,49.02815568,218.23,218.19,1e-08]
[1760034723608,3.04907834,218.22,218.19,1e-08]
[1760034723786,32.32,218.21,218.19,1e-08]
[1760034723987,33.01,218.21,218.19,1e-08]
[1760034724189,0.69,218.2,218.19,1e-08]
[1760034724610,3.73981091,218.2,218.19,1e-08]
[1760034725395,8.32276233,218.2,218.19,1e-08]
[1760034726591,7.63276233,218.2,218.19,1e-08]
[1760034726791,36.90295142,218.2,218.19,1e-08]
[1760034727019,39.95276233,218.2,218.19,1e-08]
[1760034729398,7.63276233,218.2,218.19,1e-08]
[1760034729603,36.92295142,218.2,218.19,1e-08]
[1760034729802,39.97276233,218.2,218.19,1e-08]
[1760034730203,7.63276233,218.2,218.19,0.71000001]
[1760034730410,36.92295142,218.2,218.19,0.71000001]
[1760034730606,39.97276233,218.2,218.19,0.71000001]
[1760034731323,39.97276233,218.2,218.19,1e-08]
[1760034731724,39.97276233,218.2,218.19,0.71000001]
[1760034732324,39.97276233,218.2,218.19,1e-08]
[1760034735897,7.63276233,218.2,218.19,0.71000001]
[1760034736122,36.92295142,218.2,218.19,0.71000001]
[1760034736323,39.97276233,218.2,218.19,0.71000001]
[1760034736704,7.63276233,218.2,218.19,0.71000001]
[1760034737033,36.92295142,218.2,218.19,0.71000001]
[1760034737220,7.63276233,218.2,218.19,0.71000001]
[1760034737408,39.97238851,218.22,218.19,0.71000001]
[1760034737605,7.6325523,218.21,218.2,0.71]
[1760034737807,7.6325523,218.21,218.19,1e-08]
[1760034738007,35.38981091,218.2,218.19,1e-08]
[1760034739111,36.07981091,218.2,218.19,1e-08]
[1760034739707,40.66276233,218.2,218.19,1e-08]
[1760034739925,39.97276233,218.2,218.19,1e-08]
[1760034742719,7.63276233,218.2,218.19,1e-08]
[1760034743037,39.97276233,218.2,218.19,1e-08]
[1760034743529,7.63276233,218.2,218.19,0.71000001]
[1760034743734,39.97276233,218.2,218.19,0.71000001]
[1760034743913,3.04981091,218.2,218.19,0.71000001]
[1760034744224,4.58295142,218.2,218.19,0.71000001]
[1760034744433,7.6325523,218.21,218.19,0.71000001]
[1760034744604,3.04981091,218.2,218.19,0.71000001]
[1760034744807,3.04981091,218.2,218.19,1e-08]
[1760034745328,3.04981091,218.2,218.19,0.71000001]
[1760034745632,7.63276233,218.2,218.19,0.71000001]
[1760034745827,32.36,218.22,218.19,0.71000001]
[1760034745828,7.63255772,218.21,218.19,0.71000001]
[1760034746024,3.04981091,218.2,218.19,0.71000001]
[1760034746225,7.63255772,218.21,218.19,0.71000001]
[1760034746741,3.04981091,218.21,218.19,0.71000001]
[1760034746952,35.38981091,218.21,218.19,0.71000001]
[1760034747242,3.04981091,218.2,218.19,1e-08]
[1760034747739,7.63276233,218.2,218.19,0.71000001]
[1760034749233,3.04981091,218.2,218.19,0.71000001]
[1760034749436,32.34,218.22,218.19,0.71000001]
[1760034749731,3.04981091,218.21,218.2,0.71]
[1760034750041,3.04981091,218.22,218.19,1e-08]
[1760034750221,3.04981091,218.21,218.19,1e-08]
[1760034750413,3.04981091,218.22,218.2,0.71]
[1760034750616,3.04981091,218.21,218.2,0.71]
[1760034750935,3.04981091,218.23,218.2,0.71]
[1760034751510,3.04981091,218.24,218.2,0.71]
[1760034752539,3.04981091,218.24,218.2,5.29289735]
[1760034752722,4.58129844,218.28,218.21,11.55647521]
[1760034752923,7.63110935,218.28,218.22,0.68]
[1760034753136,7.63110935,218.28,218.22,5.26235991]
[1760034753311,7.63110935,218.28,218.23,0.68]
[1760034754012,19.08428875,218.28,218.19,4.58296367]
[1760034754242,3.04981091,218.27,218.21,0.68]
[1760034754912,4.58129844,218.28,218.21,0.68]
[1760034755111,7.63110935,218.28,218.21,0.68]
[1760034756010,3.04981091,218.27,218.21,0.68]
[1760034756209,19.08428875,218.28,218.21,0.68]
[1760034756410,3.04981091,218.27,218.21,0.68]
[1760034757346,3.04981091,218.27,218.21,5.26267562]
[1760034757519,3.04981091,218.27,218.22,0.68]
[1760034758217,7.63133619,218.27,218.22,0.68]
[1760034758614,3.04981091,218.27,218.22,5.26251834]
[1760034758855,7.63083434,218.3,218.23,0.68]
[1760034759022,7.63083434,218.3,218.24,10.87647521]
[1760034759352,4.58102343,218.3,218.25,0.68]
[1760034760248,4.58102343,218.3,218.23,10.87647521]
[1760034760429,4.58102343,218.3,218.24,0.68]
[1760034760626,3.04981091,218.31,218.24,0.68]
[1760034760838,4.58057125,218.32,218.24,0.68]
[1760034762523,16.02952865,218.35,218.26,10.87647521]
[1760034762722,3.06987658,218.34,218.27,0.68]
[1760034763118,16.02952865,218.35,218.27,0.68]
[1760034766160,16.02952865,218.35,218.27,80.98]
[1760034767227,16.02952865,218.35,218.26,15.45814669]
[1760034767455,16.02952865,218.35,218.27,0.68]
[1760034768655,12.12972559,218.35,218.27,0.68]
[1760034769659,12.12972559,218.35,218.27,5.26148088]
[1760034769953,0.68,218.34,218.24,10.87647521]
[1760034770147,0.68,218.33,218.24,10.87647521]
[1760034770449,0.68,218.32,218.24,10.87647521]
[1760034770657,0.68,218.32,218.24,11.55647521]
[1760034770859,4.5806422,218.31,218.24,10.87647521]
[1760034771031,4.5806422,218.31,218.25,0.68]
[1760034771556,5.2606422,218.31,218.25,0.68]
[1760034773765,48.99224771,218.31,218.19,0.68000001]
[1760034774067,0.68,218.3,218.19,0.68000001]
[1760034774254,3.74315189,218.3,218.19,0.68000001]
[1760034774452,3.74315189,218.3,218.19,1e-08]
[1760034774854,16.03371661,218.29,218.19,1e-08]
[1760034775062,3.06315189,218.28,218.19,1e-08]
[1760034775373,3.74315189,218.28,218.19,1e-08]
[1760034776048,0.68,218.28,218.19,0.68000001]
[1760034776570,0.68,218.28,218.2,10.87647521]
[1760034776757,0.68,218.28,218.21,0.68]
[1760034776958,4.58148165,218.27,218.21,0.68]
[1760034777271,4.58148165,218.27,218.21,5.26273144]
[1760034777460,4.58148165,218.27,218.22,0.68]
[1760034777869,16.02931073,218.35,218.23,10.87647521]
[1760034778183,16.02931073,218.35,218.25,10.87647521]
[1760034778373,0.68,218.34,218.25,10.87647521]
[1760034778550,0.68,218.33,218.25,10.87647521]
[1760034778753,0.68,218.32,218.25,10.87647521]
[1760034779283,4.5806422,218.31,218.25,10.87647521]
[1760034780074,4.5806422,218.31,218.25,15.45837012]
[1760034780258,0.68,218.33,218.26,0.68]
[1760034781276,16.03151337,218.32,218.21,11.45685348]
[1760034781474,16.03151337,218.32,218.23,0.68]
[1760034781475,0.68,218.31,218.23,0.68]
[1760034782274,4.58043239,218.32,218.23,0.68]
[1760034782968,5.26043239,218.32,218.23,0.68]
[1760034783182,16.71151337,218.32,218.23,0.68]
[1760034783359,16.71151337,218.32,218.24,4.58211143]
[1760034783682,16.71151337,218.32,218.24,5.30211143]
[1760034785375,16.03151337,218.32,218.24,0.72]
[1760034785586,0.68,218.31,218.2,0.72]
[1760034785770,20.8,218.29,218.2,81.02]
[1760034785956,0.68,218.28,218.2,81.02]
[1760034786683,0.68,218.28,218.2,85.60287946]
[1760034787296,4.58148165,218.27,218.2,85.60287946]
[1760034787490,4.58148165,218.27,218.2,81.02]
[1760034787691,0.68,218.26,218.19,80.30000001]
[1760034787855,0.68,218.25,218.19,80.30000001]
[1760034788261,0.68,218.24,218.19,80.30000001]
[1760034788685,3.06882773,218.26,218.19,80.30000001]
[1760034788878,0.68,218.24,218.19,80.30000001]
[1760034789273,4.5823214,218.23,218.19,80.30000001]
[1760034789588,0.68,218.22,218.19,80.30000001]
[1760034789987,0.68,218.22,218.19,1e-08]
[1760034790594,4.5823214,218.23,218.19,0.72000001]
[1760034790898,4.58202433,218.25,218.2,0.72]
[1760034791068,4.58202433,218.25,218.21,0.72]
[1760034791395,4.58085203,218.3,218.22,0.72]
[1760034792095,16.03298212,218.3,218.22,0.72]
[1760034792403,3.06999984,218.29,218.22,0.72]
[1760034793085,4.58127176,218.28,218.22,0.72]
[1760034794794,4.58043239,218.32,218.23,10.87647521]
[1760034794989,7.6528795,218.32,218.24,33.02]
[1760034795201,7.6528795,218.32,218.25,5.30190148]
[1760034795491,7.6528795,218.32,218.26,0.72]
[1760034796070,3.07244711,218.32,218.26,0.72]
[1760034796374,4.58022623,218.33,218.26,0.72]
[1760034796891,7.65227371,218.35,218.27,10.87647521]
[1760034797084,7.65227371,218.35,218.28,33.02]
[1760034797387,3.07244711,218.35,218.29,11.59647521]
[1760034797585,0.68,218.41,218.31,10.87647521]
[1760034797895,5.25894694,218.4,218.32,32.32]
[1760034798066,8.33301913,218.4,218.32,33.04]
[1760034798391,8.33301913,218.4,218.26,10.87647521]
[1760034798392,0.68,218.39,218.27,10.87647521]
[1760034798592,3.75407219,218.39,218.31,0.72]
[1760034798972,3.75407219,218.39,218.28,53.84]
[1760034799172,4.57959333,218.36,218.28,33.04]
[1760034799391,8.33366552,218.36,218.28,33.04]
[1760034799768,8.33366552,218.36,218.28,36.90126373]
[1760034799971,8.33366552,218.36,218.29,0.72]
[1760034800389,19.78264885,218.36,218.29,0.72]
[1760034800579,16.70857666,218.36,218.29,0.72]
[1760034801608,16.02857666,218.36,218.29,0.72]
[1760034802593,11.44898333,218.36,218.29,0.72]
[1760034802777,14.52028592,218.36,218.29,0.72]
[1760034802971,4.57938361,218.37,218.3,10.87647521]
[1760034803176,4.57938361,218.37,218.31,0.7]
[1760034804208,4.57917391,218.38,218.31,0.7]
[1760034806299,16.0271087,218.38,218.3,10.87647521]
[1760034806600,3.76171332,218.37,218.29,211.2]
[1760034806900,0.69,218.36,218.29,243.48]
[1760034807782,0.69,218.35,218.29,211.2]
[1760034808183,4.58001282,218.34,218.29,211.2]
[1760034808387,0.69,218.33,218.29,211.2]
[1760034808581,0.69,218.32,218.29,211.2]
[1760034808992,16.72004488,218.34,218.29,80.3]
[1760034809181,0.69,218.33,218.29,80.3]
[1760034810280,0.69,218.32,218.29,80.3]
[1760034810486,0.69,218.31,218.26,80.3]
[1760034810690,0.69,218.3,218.24,80.3]
[1760034811010,0.69,218.29,218.21,32.3]
[1760034811225,3.06974196,218.32,218.19,0.70000001]
[1760034811226,0.69,218.28,218.19,0.70000001]
[1760034811712,20.8,218.26,218.19,0.70000001]
[1760034812010,21.49,218.26,218.19,0.70000001]
[1760034812812,4.58190148,218.25,218.19,0.70000001]
[1760034814409,16.6966552,218.25,218.19,1e-08]
[1760034815397,16.6966552,218.25,218.19,0.72000001]
[1760034818031,16.0366552,218.25,218.19,0.72000001]
[1760034819116,4.58190148,218.25,218.19,5.30312757]
[1760034819418,0.66,218.3,218.21,10.87647521]
[1760034819607,0.66,218.3,218.22,33.02]
[1760034819810,0.66,218.3,218.23,0.72]
[1760034820322,4.58106189,218.29,218.23,0.72]
[1760034821117,16.03371661,218.29,218.23,0.72]
[1760034822017,0.66,218.28,218.22,80.3]
[1760034822428,0.66,218.27,218.22,80.3]
[1760034822728,0.66,218.26,218.22,80.3]
[1760034823125,20.8,218.29,218.23,0.72]
[1760034823299,20.8,218.28,218.23,0.72]
[1760034823725,20.8,218.29,218.23,0.72]
[1760034824240,4.58127176,218.28,218.23,0.72]
[1760034824719,4.58127176,218.28,218.24,0.72]
[1760034826607,4.58108543,218.29,218.25,0.67]
[1760034826807,12.11086985,218.33,218.25,0.67]
[1760034826808,11.45086985,218.33,218.25,0.67]
[1760034827528,11.45086985,218.33,218.25,5.25171486]
[1760034827829,14.51904555,218.33,218.26,0.67]
[1760034828334,15.17904555,218.33,218.26,0.67]
[1760034828935,0.5,218.31,218.26,0.67]
[1760034829114,1.16,218.31,218.25,10.87647521]
[1760034829429,5.74083918,218.31,218.25,15.45834025]
[1760034829732,5.08083918,218.31,218.26,0.67]
[1760034829931,5.08083918,218.31,218.25,15.45834025]
[1760034830135,32.94,218.3,218.19,1e-08]
[1760034830426,20.8,218.27,218.19,1e-08]
[1760034830633,3.06817847,218.26,218.19,1e-08]
[1760034830842,3.72817847,218.26,218.19,1e-08]
[1760034831010,32.32,218.25,218.19,1e-08]
[1760034831212,3.06817847,218.24,218.19,1e-08]
[1760034831430,3.72817847,218.24,218.19,1e-08]
[1760034831632,16.03812491,218.23,218.19,1e-08]
[1760034832026,3.72556797,218.22,218.19,1e-08]
[1760034832423,0.66,218.21,218.19,1e-08]
[1760034832941,16.03812491,218.23,218.19,1e-08]
[1760034832942,5.24295142,218.2,218.19,1e-08]
[1760034833320,4.58295142,218.2,218.19,1e-08]
[1760034833908,4.58274139,218.21,218.19,1e-08]
[1760034834328,5.24274139,218.21,218.19,1e-08]
[1760034835447,32.32,218.2,218.19,1e-08]
[1760034835811,32.98,218.2,218.19,1e-08]
[1760034836013,37.56295142,218.2,218.19,1e-08]
[1760034836233,57.70295142,218.2,218.19,1e-08]
[1760034836445,58.36295142,218.2,218.19,1e-08]
[1760034837424,57.70295142,218.2,218.19,1e-08]
[1760034838223,58.36295142,218.2,218.19,1e-08]
[1760034838920,25.38295142,218.2,218.19,1e-08]
[1760034839135,57.70295142,218.2,218.19,1e-08]
[1760034841015,20.8,218.2,218.19,1e-08]
[1760034841241,16.03885986,218.22,218.19,0.67000001]
[1760034841420,32.32,218.21,218.19,0.67000001]
[1760034841612,32.32,218.21,218.19,1e-08]
[1760034841816,21.46,218.24,218.19,1e-08]
[1760034841817,4.58226221,218.24,218.2,0.67]
[1760034842116,4.58226221,218.24,218.21,0.67]
[1760034842627,4.58226221,218.24,218.22,0.67]
[1760034842824,4.58226221,218.24,218.22,0.66]
[1760034843039,16.0362419,218.26,218.22,0.66]
[1760034843344,48.3562419,218.26,218.22,0.66]
[1760034843544,48.3562419,218.26,218.19,80.30000001]
[1760034843841,0.67,218.25,218.19,80.30000001]
[1760034844142,48.3562419,218.26,218.19,80.96000001]
[1760034844440,0.67,218.36,218.22,20.8]
[1760034844624,32.32,218.35,218.24,10.87647521]
[1760034844941,32.32,218.35,218.25,0.66]
[1760034845127,48.34974701,218.35,218.26,4.58169156]
[1760034845333,48.34974701,218.35,218.27,0.66]
[1760034846616,49.01974701,218.35,218.27,0.66]
[1760034848021,16.69974701,218.35,218.27,0.66]
[1760034848228,32.36,218.34,218.27,0.66]
[1760034848425,32.36,218.33,218.27,0.66]
[1760034849023,4.58043239,218.32,218.27,0.66]
[1760034849219,4.58043239,218.32,218.28,0.66]
[1760034849426,4.58001282,218.34,218.28,80.96]
[1760034849629,4.58001282,218.34,218.29,0.66]
[1760034849844,4.58001282,218.34,218.28,80.3]
[1760034850037,4.58001282,218.34,218.3,0.66]
[1760034850243,4.58001282,218.34,218.31,0.66]
[1760034850435,4.58001282,218.34,218.29,0.66]
[1760034850636,4.57980306,218.35,218.3,0.66]
[1760034850839,4.57980306,218.35,218.31,0.66]
[1760034851738,32.36,218.36,218.32,0.66]
[1760034851939,32.34,218.37,218.32,0.66]
[1760034852753,33.01,218.37,218.32,0.66]
[1760034853048,0.67,218.36,218.29,80.96]
[1760034854272,4.57980306,218.35,218.29,80.96]
[1760034855031,0.67,218.34,218.29,80.3]
[1760034855340,33.49,218.33,218.24,80.3]
[1760034855652,3.73328711,218.32,218.23,0.66]
[1760034855830,20.8,218.3,218.2,0.66]
[1760034856033,33.01,218.29,218.2,0.66]
[1760034856234,20.8,218.26,218.2,0.66]
[1760034857642,4.58127176,218.28,218.2,5.24293739]
[1760034857831,4.58127176,218.28,218.21,0.66]
[1760034858233,4.58106189,218.29,218.22,4.58253139]
[1760034858459,4.58106189,218.29,218.23,0.66]
[1760034859284,4.58085203,218.3,218.23,0.66]
[1760034859567,16.03298212,218.3,218.23,0.66]
[1760034859869,16.70298212,218.3,218.21,0.66]
[1760034860458,0.5,218.28,218.21,0.66]
[1760034860673,4.58148165,218.27,218.21,0.66]
[1760034861865,4.58148165,218.27,218.21,5.24270342]
[1760034862065,4.58148165,218.27,218.21,80.96]
[1760034862448,4.58148165,218.27,218.21,0.66]
[1760034862642,4.58148165,218.27,218.19,1e-08]
[1760034862643,5.25148165,218.27,218.19,80.30000001]
[1760034862845,16.70518577,218.27,218.19,1e-08]
[1760034863063,16.70518577,218.27,218.19,0.66000001]
[1760034866649,20.8,218.24,218.19,1e-08]
[1760034866861,53.12,218.24,218.19,1e-08]
[1760034867173,16.70812491,218.23,218.19,1e-08]
[1760034867686,3.06063684,218.22,218.19,1e-08]
[1760034868162,0.67,218.21,218.19,1e-08]
[1760034868874,35.40063684,218.22,218.19,1e-08]
[1760034869040,4.58274139,218.21,218.19,1e-08]
[1760034869237,5.25274139,218.21,218.19,1e-08]
[1760034869649,0.67,218.2,218.19,1e-08]
[1760034870654,4.58274139,218.21,218.19,1e-08]
[1760034871348,5.25274139,218.21,218.19,1e-08]
[1760034871965,4.58274139,218.21,218.19,1e-08]
[1760034872267,3.80914667,218.3,218.19,1e-08]
[1760034872268,32.34,218.24,218.19,1e-08]
[1760034872571,0.67,218.21,218.19,1e-08]
[1760034873272,4.58295142,218.2,218.19,1e-08]
[1760034874053,5.25295142,218.2,218.19,1e-08]
[1760034874469,37.61295142,218.2,218.19,1e-08]
[1760034875263,5.25295142,218.2,218.19,1e-08]
[1760034875666,37.61295142,218.2,218.19,1e-08]
[1760034876866,36.94295142,218.2,218.19,1e-08]
[1760034877177,37.61295142,218.2,218.19,1e-08]
[1760034877876,36.94295142,218.2,218.19,1e-08]
[1760034879168,37.61295142,218.2,218.19,1e-08]
[1760034880562,40.67043368,218.2,218.19,1e-08]
[1760034883167,40.63043368,218.2,218.19,1e-08]
[1760034884567,39.96043368,218.2,218.19,1e-08]
[1760034884787,36.90295142,218.2,218.19,1e-08]
[1760034886064,39.9576648,218.2,218.19,1e-08]
[1760034886271,40.6476648,218.2,218.19,1e-08]
[1760034886889,39.9576648,218.2,218.19,1e-08]
[1760034887190,36.90295142,218.2,218.19,1e-08]
[1760034889970,25.38295142,218.2,218.19,1e-08]
[1760034890171,57.66295142,218.2,218.19,1e-08]
[1760034890889,61.40636723,218.2,218.19,1e-08]
[1760034891076,61.4062962,218.2,218.19,1e-08]
[1760034892978,29.1262962,218.2,218.19,1e-08]
[1760034893592,61.4062962,218.2,218.19,1e-08]
[1760034895799,60.7162962,218.2,218.19,1e-08]
[1760034896089,61.4062962,218.2,218.19,1e-08]
[1760034898792,72.28277141,218.2,218.19,1e-08]
[1760034900391,72.28277141,218.2,218.11,0.1]
[1760034900392,20.8,218.15,218.11,0.1]
[1760034900701,3.05334478,218.14,218.12,0.71]
[1760034900882,32.32,218.13,218.11,0.1]
[1760034901287,20.8,218.17,218.11,0.1]
[1760034901596,3.06322286,218.16,218.12,0.71]
[1760034902099,32.36,218.15,218.12,0.71]
[1760034902279,36.94408426,218.15,218.13,0.71]
[1760034902490,48.40408884,218.15,218.14,0.71]
[1760034903285,51.46860674,218.15,218.14,0.71]
[1760034904791,40.02860216,218.15,218.14,0.71]
[1760034905397,51.48860674,218.15,218.12,0.65]
[1760034905713,3.0645179,218.14,218.11,0.1]
[1760034906014,32.38,218.13,218.11,0.1]
[1760034906314,19.11073099,218.12,218.05,0.65]
[1760034906488,35.4445179,218.11,218.05,0.65]
[1760034906828,3.0645179,218.1,218.05,0.65]
[1760034907107,32.4,218.09,218.06,0.65]
[1760034907412,32.4,218.09,218.0,84.88714751]
[1760034907413,35.46423975,218.08,218.07,0.65]
[1760034907611,32.4,218.08,218.07,0.65]
[1760034907814,16.04621309,218.12,218.07,0.65]
[1760034907986,35.46446711,218.11,218.07,0.65]
[1760034908197,7.64967054,218.1,218.07,0.65]
[1760034908399,32.4,218.09,218.07,0.65]
[1760034908900,4.58520343,218.1,218.07,0.65]
[1760034909120,32.4,218.09,218.07,0.65]
[1760034910729,4.58421197,218.14,218.07,85.53555571]
[1760034910921,7.6493898,218.14,218.08,0.65]